fUST/lending_fUST_20240128
["ID","MTS","AMOUNT","RATE_DAILY","PERIOD"]
[312892735,1706425839408,-500.0,0.00024657,2]
[312892736,1706425839418,-853.73,0.00024657,2]
[312892737,1706425839427,-500.0,0.00024657,2]
[312892738,1706425839437,-500.0,0.00024657,2]
[312892739,1706425839446,-500.0,0.00024657,2]
[312892740,1706425839456,-500.0,0.00024657,2]
[312892741,1706425839466,-500.0,0.00024657,2]
[312892742,1706425839476,-500.0,0.00024657,2]
[312892743,1706425839485,-500.0,0.00024657,2]
[312892744,1706425839495,-500.0,0.00024657,2]
[312892745,1706425839504,-500.0,0.00024657,2]
[312892746,1706425839513,-500.0,0.00024657,2]
[312892755,1706425839611,-500.0,0.00024657,2]
[312892756,1706425839622,-500.0,0.00024657,2]
[312892757,1706425839631,-185.58917988,0.00024657,2]
[312892758,1706425839640,-500.0,0.00024657,2]
[312892759,1706425839649,-500.0,0.00024657,2]
[312892760,1706425839659,-500.0,0.00024657,2]
[312892761,1706425839669,-500.0,0.00024657,2]
[312892762,1706425839679,-500.0,0.00024657,2]
[312892763,1706425839688,-500.0,0.00024657,2]
[312892764,1706425839697,-2618.59,0.00024657,2]
[312892765,1706425839707,-500.0,0.00024657,2]
[312892766,1706425839717,-500.0,0.00024657,2]
[312892767,1706425839726,-2074.42,0.00024657,2]
[312892768,1706425839735,-500.0,0.00024657,2]
[312892769,1706425839754,-500.0,0.00024657,2]
[312892770,1706425839765,-483.73588031,0.00024657,2]
[312892771,1706425839775,-500.0,0.00024657,2]
[312892772,1706425839785,-500.0,0.00024657,2]
[312892773,1706425839795,-500.0,0.00024657,2]
[312892774,1706425839805,-632.8967434,0.00024657,2]
[312892775,1706425839815,-500.0,0.00024657,2]
[312892776,1706425839825,-500.0,0.00024657,2]
[312892777,1706425839835,-500.0,0.00024657,2]
[312892778,1706425839845,-500.0,0.00024657,2]
[312892779,1706425839855,-1828.36,0.00024657,2]
[312892780,1706425839864,-500.0,0.00024657,2]
[312892781,1706425839876,-500.0,0.00024657,2]
[312892782,1706425839886,-500.0,0.00024657,2]
[312892783,1706425839896,-1781.92,0.00024657,2]
[312892784,1706425839906,-819.23,0.00024657,2]
[312892785,1706425839915,-1024.81,0.00024657,2]
[312892786,1706425839925,-500.0,0.00024657,2]
[312892787,1706425839935,-167.017897,0.00024657,2]
[312892788,1706425839945,-167.017897,0.00024657,2]
[312892789,1706425839954,-500.0,0.00024657,2]
[312892790,1706425839964,-500.0,0.00024657,2]
[312892791,1706425839974,-500.0,0.00024657,2]
[312892792,1706425839983,-500.0,0.00024657,2]
[312892793,1706425839993,-500.0,0.00024657,2]
[312892794,1706425840002,-500.0,0.00024657,2]
[312892795,1706425840012,-500.0,0.00024657,2]
[312892796,1706425840021,-500.0,0.00024657,2]
[312892797,1706425840031,-510.55596455,0.00024657,2]
[312892798,1706425840041,-897.64,0.00024657,2]
[312892799,1706425840051,-500.0,0.00024657,2]
[312892800,1706425840061,-2315.71,0.00024657,2]
[312892801,1706425840070,-506.37674833,0.00024657,2]
[312892802,1706425840080,-500.0,0.00024657,2]
[312892803,1706425840089,-1336.28,0.00024657,2]
[312892804,1706425840099,-534.57,0.00024657,2]
[312892805,1706425840109,-500.0,0.00024657,2]
[312892806,1706425840122,-500.0,0.00024657,2]
[312892807,1706425840131,-11613.84,0.00024657,2]
[312892808,1706425840141,-3082.6,0.00024657,2]
[312892809,1706425840151,-5883.35,0.00024657,2]
[312892810,1706425840162,-2708.54,0.00024657,2]
[312892811,1706425840172,-500.0,0.00024657,2]
[312892812,1706425840182,-500.0,0.00024657,2]
[312892813,1706425840192,-1055.67,0.00024657,2]
[312892814,1706425840202,-500.0,0.00024657,2]
[312892815,1706425840213,-153.33165401,0.00024657,2]
[312892816,1706425840223,-500.0,0.00024657,2]
[312892817,1706425840233,-500.0,0.00024657,2]
[312892818,1706425840242,-500.0,0.00024657,2]
[312892819,1706425840252,-500.0,0.00024657,2]
[312892820,1706425840262,-500.0,0.00024657,2]
[312892822,1706425840272,-500.0,0.00024657,2]
[312892824,1706425840282,-500.0,0.00024657,2]
[312892825,1706425840291,-4360.01,0.00024657,2]
[312892826,1706425840301,-503.02,0.00024657,2]
[312892827,1706425840311,-2592.07,0.00024657,2]
[312892828,1706425840321,-511.78379089,0.00024657,2]
[312892829,1706425840331,-981.65,0.00024657,2]
[312892830,1706425840340,-500.0,0.00024657,2]
[312892831,1706425840350,-527.14,0.00024657,2]
[312892832,1706425840360,-4918.92,0.00024657,2]
[312892833,1706425840370,-500.0,0.00024657,2]
[312892835,1706425840379,-1451.23,0.00024657,2]
[312892836,1706425840389,-500.0,0.00024657,2]
[312892837,1706425840399,-810.01,0.00024657,2]
[312892838,1706425840409,-500.0,0.00024657,2]
[312892839,1706425840419,-28389.56,0.00024657,2]
[312892840,1706425840428,-500.0,0.00024657,2]
[312892841,1706425840438,-3422.07,0.00024657,2]
[312892843,1706425840448,-13960.78,0.00024657,2]
[312892844,1706425840458,-500.0,0.00024657,2]
[312892845,1706425840467,-500.0,0.00024657,2]
[312892846,1706425840477,-500.0,0.00024657,2]
[312892847,1706425840486,-512.16512598,0.00024657,2]
[312892848,1706425840496,-500.0,0.00024657,2]
[312892849,1706425840505,-506.28658522,0.00024657,2]
[312892850,1706425840516,-4392.68,0.00024657,2]
[312892851,1706425840526,-504.04847332,0.00024657,2]
[312892852,1706425840535,-1000.0,0.00024657,2]
[312892853,1706425840545,-529.15,0.00024657,2]
[312892854,1706425840554,-270.96680179,0.00024657,2]
[312892855,1706425840563,-500.0,0.00024657,2]
[312892856,1706425840573,-500.0,0.00024657,2]
[312892857,1706425840582,-684.57,0.00024657,2]
[312892858,1706425840591,-2385.83,0.00024657,2]
[312892859,1706425840600,-47065.22,0.00024657,2]
[312892860,1706425840608,-500.0,0.00024657,2]
[312892861,1706425840629,-517.12179365,0.00024657,2]
[312892862,1706425840670,-500.0,0.00024657,2]
[312892863,1706425840679,-500.0,0.00024657,2]
[312892864,1706425840687,-2210.46,0.00024657,2]
[312892865,1706425840696,-753.94,0.00024657,2]
[312892866,1706425840704,-500.0,0.00024657,2]
[312892867,1706425840713,-12713.41,0.00024657,2]
[312892868,1706425840723,-500.0,0.00024657,2]
[312892869,1706425840733,-16928.45,0.00024657,2]
[312892870,1706425840742,-355.34258383,0.00024657,2]
[312892871,1706425840751,-18074.88,0.00024657,2]
[312892872,1706425840760,-500.0,0.00024657,2]
[312892873,1706425840769,-500.0,0.00024657,2]
[312892874,1706425840778,-500.0,0.00024657,2]
[312892875,1706425840787,-3175.93,0.00024657,2]
[312892876,1706425840795,-500.0,0.00024657,2]
[312892877,1706425840804,-12058.43,0.00024657,2]
[312892878,1706425840813,-500.0,0.00024657,2]
[312892879,1706425840822,-535.34315171,0.00024657,2]
[312892880,1706425840831,-39574.96,0.00024657,2]
[312892881,1706425840839,-875.19,0.00024657,2]
[312892882,1706425840848,-500.0,0.00024657,2]
[312892883,1706425840858,-500.0,0.0002493,2]
[312892884,1706425840867,-532.38406959,0.0002493,2]
[312892885,1706425840876,-518.25289995,0.0002493,2]
[312892886,1706425840885,-496.69119176,0.0002493,2]
[312892887,1706425840894,-371.9488561,0.0002493,2]
[312892888,1706425840903,-500.0,0.0002493,2]
[312892889,1706425840912,-508.09969379,0.0002493,2]
[312892890,1706425840921,-251.56594603,0.0002493,2]
[312892891,1706425840930,-178.18502157,0.0002493,2]
[312892892,1706425840939,-391.33407109,0.0002493,2]
[312892893,1706425840949,-500.0,0.0002493,2]
[312892894,1706425840959,-500.0,0.0002493,2]
[312892895,1706425840969,-500.0,0.0002493,2]
[312892896,1706425840978,-156.35796755,0.0002493,2]
[312892897,1706425840987,-500.0,0.0002493,2]
[312892898,1706425840996,-500.0,0.0002493,2]
[312892899,1706425841006,-500.0,0.0002493,2]
[312892900,1706425841015,-500.0,0.0002493,2]
[312892901,1706425841024,-500.0,0.0002493,2]
[312892902,1706425841033,-291.45662631,0.0002493,2]
[312892903,1706425841042,-500.0,0.0002493,2]
[312892904,1706425841051,-500.0,0.0002493,2]
[312892905,1706425841061,-179.77949922,0.0002493,2]
[312892906,1706425841069,-415.76505033,0.0002493,2]
[312892907,1706425841079,-500.0,0.0002493,2]
[312892908,1706425841088,-160.99225998,0.0002493,2]
[312892909,1706425841097,-500.0,0.0002493,2]
[312892911,1706425841106,-500.0,0.0002493,2]
[312892912,1706425841119,-500.0,0.0002493,2]
[312892913,1706425841129,-500.0,0.0002493,2]
[312892914,1706425841138,-500.0,0.0002493,2]
[312892915,1706425841148,-500.0,0.0002493,2]
[312892917,1706425841157,-500.0,0.0002493,2]
[312892918,1706425841167,-500.0,0.0002493,2]
[312892919,1706425841176,-500.0,0.0002493,2]
[312892920,1706425841185,-347.53970492,0.0002493,2]
[312892921,1706425841196,-105.95231931,0.0002493,2]
[312892922,1706425841411,-394.04768069,0.0002493,2]
[312892923,1706425841421,-500.0,0.0002493,2]
[312892924,1706425841430,-500.0,0.0002493,2]
[312892925,1706425841439,-298.48147438,0.0002493,2]
[312892926,1706425841448,-500.0,0.0002493,2]
[312892927,1706425841459,-500.0,0.0002493,2]
[312892928,1706425841468,-500.0,0.0002493,2]
[312892929,1706425841478,-500.0,0.0002493,2]
[312892930,1706425841487,-500.0,0.0002493,2]
[312892931,1706425841496,-500.0,0.0002493,2]
[312892932,1706425841506,-500.0,0.0002493,2]
[312892933,1706425841515,-164.27609953,0.0002493,2]
[312892934,1706425841525,-500.0,0.0002493,2]
[312892935,1706425841535,-500.0,0.0002493,2]
[312892936,1706425841544,-500.0,0.0002493,2]
[312892937,1706425841553,-425.31454102,0.0002493,2]
[312892938,1706425841562,-500.0,0.0002493,2]
[312892939,1706425841571,-500.0,0.0002493,2]
[312892940,1706425841580,-500.0,0.0002493,2]
[312892941,1706425841589,-500.0,0.0002493,2]
[312892942,1706425841598,-500.0,0.0002493,2]
[312892943,1706425841608,-420.72972726,0.0002493,2]
[312892944,1706425841740,-155.02170304,0.00020557,4]
[312892945,1706425841750,-500.0,0.00024657,2]
[312892946,1706425841759,-79.27027274,0.0002493,2]
[312892947,1706425841769,-500.0,0.0002493,2]
[312892948,1706425841778,-300.0,0.0002493,2]
[312892949,1706425841787,-500.0,0.0002493,2]
[312892950,1706425841796,-196.58601966,0.0002493,2]
[312892951,1706425841804,-200.0,0.0002493,2]
[312892952,1706425841813,-500.0,0.0002493,2]
[312892953,1706425841822,-500.0,0.0002493,2]
[312892954,1706425841831,-500.0,0.0002493,2]
[312892955,1706425841840,-500.0,0.0002493,2]
[312892956,1706425841849,-470.22072581,0.0002493,2]
[312892957,1706425841860,-500.0,0.00024931,2]
[312892958,1706425841869,-500.0,0.00024931,2]
[312892959,1706425841878,-500.0,0.00024931,2]
[312892960,1706425841887,-500.0,0.00024931,2]
[312892961,1706425841896,-553.79981414,0.00024931,2]
[312892962,1706425841905,-500.0,0.00024931,2]
[312892963,1706425841914,-500.0,0.00024931,2]
[312892964,1706425841923,-945.44,0.00024931,2]
[312892965,1706425841932,-500.0,0.00024931,2]
[312892966,1706425841941,-2250.28,0.00024931,2]
[312892967,1706425841950,-500.0,0.00024931,2]
[312892968,1706425841960,-500.0,0.00024931,2]
[312892969,1706425841969,-500.0,0.00024931,2]
[312892970,1706425841978,-500.0,0.00024931,2]
[312892971,1706425841987,-1231.0,0.00024931,2]
[312892972,1706425841996,-1262.85,0.00024931,2]
[312892973,1706425842005,-500.0,0.00024931,2]
[312892974,1706425842014,-500.0,0.00024931,2]
[312892975,1706425842024,-500.0,0.00024931,2]
[312892976,1706425842032,-500.0,0.00024931,2]
[312892977,1706425842041,-500.0,0.00024931,2]
[312892978,1706425842051,-151.0,0.00024931,2]
[312892979,1706425842060,-500.0,0.00024931,2]
[312892980,1706425842069,-151.0,0.00024931,2]
[312892981,1706425842078,-245.0,0.00024931,2]
[312892982,1706425842086,-1077.71,0.00024931,2]
[312892983,1706425842096,-500.0,0.00024931,2]
[312892984,1706425842105,-1983.79,0.00024931,2]
[312892985,1706425842117,-500.0,0.00024931,2]
[312892986,1706425842127,-1426.37,0.00024931,2]
[312892987,1706425842136,-500.0,0.00024931,2]
[312892988,1706425842145,-500.0,0.00024931,2]
[312892989,1706425842154,-500.0,0.00024931,2]
[312892990,1706425842164,-136.65111522,0.00024931,2]
[312893017,1706425843138,-1196.04090975,0.00024657,2]
[312893057,1706425846288,-451.25,0.00024647,3]
[312893060,1706425878235,417.57452849,0.00018697,2]
[312893451,1706427038342,-155.02325349,0.00021093,4]
[312893453,1706427038351,-2851.21071327,0.00021093,2]
[312893455,1706427038361,-181.15956934,0.00021094,2]
[312893457,1706427038370,-1856.25502519,0.00021094,2]
[312893459,1706427038380,-5214.02314025,0.00021094,2]
[312893460,1706427038389,-155.02325349,0.00021095,2]
[312893462,1706427038399,-1774.09643899,0.00021095,2]
[312893463,1706427038408,-169.58374,0.000211,2]
[312893465,1706427038417,-6173.8722567,0.0002142,2]
[312893466,1706427038426,-166.666666,0.00021918,2]
[312893468,1706427038435,-2036.5412467,0.00022,2]
[312893469,1706427038444,-327.6585175,0.0002243,2]
[312893470,1706427038453,-166.666666,0.00022431,2]
[312893471,1706427038463,-155.84154948,0.00022804,2]
[312893473,1706427038475,-156.48321627,0.00022804,2]
[312893474,1706427038484,-259.19142064,0.00022804,2]
[312893476,1706427038494,-619.33057673,0.00022805,2]
[312893478,1706427038502,-50000.0,0.00022806,2]
[312893480,1706427038511,-609.46301454,0.0002283,2]
[312893481,1706427038521,-166.666666,0.00022944,2]
[312893482,1706427038530,-170.734887,0.00023377,2]
[312893483,1706427038539,-166.666666,0.00023456,2]
[312893485,1706427038548,-166.666666,0.00023969,2]
[312893487,1706427038557,-557.4339509,0.00024064,2]
[312893488,1706427038567,-203.7201347,0.00024178,2]
[312893490,1706427038576,-199.0119446,0.00024178,2]
[312893491,1706427038585,-861.22231419,0.00024193,2]
[312893492,1706427038595,-167.31888484,0.00024284,2]
[312893493,1706427038604,-1356.81055732,0.00024309,2]
[312893494,1706427038613,-13908.93319985,0.00024309,2]
[312893496,1706427038622,-153.0,0.00024384,2]
[312893497,1706427038631,-153.0,0.00024384,2]
[312893499,1706427038640,-153.0,0.00024384,2]
[312893501,1706427038649,-153.0,0.00024384,2]
[312893503,1706427038658,-153.0,0.00024384,2]
[312893505,1706427038668,-153.0,0.00024384,2]
[312893506,1706427038677,-153.0,0.00024384,2]
[312893508,1706427038686,-153.0,0.00024384,2]
[312893509,1706427038695,-153.0,0.00024384,2]
[312893510,1706427038704,-368.919795,0.00024384,2]
[312893511,1706427038713,-153.0,0.00024384,2]
[312893512,1706427038722,-153.0,0.00024384,2]
[312893513,1706427038731,-199.4949389,0.00024384,2]
[312893514,1706427038740,-199.4949389,0.00024384,2]
[312893515,1706427038749,-153.0,0.00024384,2]
[312893516,1706427038759,-199.4949389,0.00024384,2]
[312893517,1706427038767,-199.4949389,0.00024384,2]
[312893518,1706427038776,-153.0,0.00024384,2]
[312893519,1706427038786,-199.4949389,0.00024384,2]
[312893520,1706427038795,-167.31888484,0.00024421,2]
[312893521,1706427038804,-166.666666,0.00024482,2]
[312893522,1706427038814,-200.0,0.00024555,2]
[312893523,1706427038823,-289.31631416,0.00024555,2]
[312893524,1706427038832,-155.02635448,0.00024555,2]
[312893525,1706427038841,-1026.83362731,0.00024555,2]
[312893526,1706427038850,-1589.9986431,0.00024555,2]
[312893527,1706427038859,-1406.49498548,0.00024555,2]
[312893528,1706427038868,-156.20898937,0.00024555,2]
[312893529,1706427038878,-3936.78097626,0.00024555,2]
[312893530,1706427038887,-176.86265737,0.00024555,2]
[312893531,1706427038895,-245.58977518,0.00024555,2]
[312893532,1706427038906,-524.46302518,0.00024555,2]
[312893533,1706427038914,-2080.40059102,0.00024555,2]
[312893534,1706427038923,-155.60546346,0.00024555,2]
[312893535,1706427038932,-164.41820469,0.00024555,2]
[312893536,1706427038942,-206.43376055,0.00024555,2]
[312893537,1706427038951,-1299.03015508,0.00024555,2]
[312893538,1706427038960,-4837.47410872,0.00024555,2]
[312893539,1706427038969,-628.17717001,0.00024555,2]
[312893540,1706427038978,-155.52200796,0.00024555,2]
[312893541,1706427038987,-309.95093829,0.00024555,2]
[312893542,1706427038997,-331.10236049,0.00024555,2]
[312893543,1706427039006,-265.46862061,0.00024555,2]
[312893544,1706427039015,-167.66325036,0.00024555,2]
[312893545,1706427039024,-2105.7958969,0.00024555,2]
[312893546,1706427039033,-243.41160867,0.00024556,2]
[312893547,1706427039042,-500.0,0.00024556,2]
[312893548,1706427039051,-500.0,0.00024556,2]
[312893549,1706427039060,-500.0,0.00024556,2]
[312893550,1706427039069,-500.0,0.00024556,2]
[312893551,1706427039078,-500.0,0.00024556,2]
[312893552,1706427039087,-500.0,0.00024556,2]
[312893553,1706427039096,-624.72253014,0.00024556,2]
[312893554,1706427039105,-214970.85536857,0.00024557,2]
[312893555,1706427039114,-167.31888484,0.00024557,2]
[312893556,1706427039123,-153.0,0.000246,2]
[312893557,1706427039132,-153.0,0.000246,2]
[312893558,1706427039141,-306.4864988,0.000246,2]
[312893559,1706427039150,-153.0,0.000246,2]
[312893560,1706427039159,-153.0,0.000246,2]
[312893561,1706427039168,-153.0,0.000246,2]
[312893562,1706427039177,-153.0,0.000246,2]
[312893563,1706427039185,-153.0,0.000246,2]
[312893564,1706427039195,-384.9894508,0.000246,2]
[312893565,1706427039204,-153.0,0.000246,2]
[312893566,1706427039213,-153.0,0.000246,2]
[312893567,1706427039222,-209.4513334,0.00024647,2]
[312893568,1706427039231,-303.13985087,0.00024656,2]
[312893569,1706427039241,-1272.98096576,0.00024656,2]
[312893570,1706427039250,-1369.00228132,0.00024656,2]
[312893571,1706427039259,-304.85957128,0.00024656,2]
[312893572,1706427039268,-500.0,0.00024656,2]
[312893573,1706427039278,-191.16399477,0.00024656,2]
[312893574,1706427039287,-500.0,0.00024656,2]
[312893575,1706427039296,-500.0,0.00024656,2]
[312893576,1706427039306,-500.0,0.00024656,2]
[312893577,1706427039319,-500.0,0.00024656,2]
[312893578,1706427039330,-500.0,0.00024656,2]
[312893579,1706427039340,-500.0,0.00024656,2]
[312893580,1706427039352,-500.0,0.00024656,2]
[312893581,1706427039362,-500.0,0.00024656,2]
[312893582,1706427039372,-500.0,0.00024656,2]
[312893583,1706427039381,-500.0,0.00024656,2]
[312893584,1706427039392,-500.0,0.00024656,2]
[312893585,1706427039402,-500.0,0.00024656,2]
[312893586,1706427039413,-500.0,0.00024656,2]
[312893587,1706427039423,-500.0,0.00024656,2]
[312893588,1706427039432,-425.31454102,0.00024656,2]
[312893589,1706427039442,-500.0,0.00024656,2]
[312893590,1706427039451,-500.0,0.00024656,2]
[312893591,1706427039462,-156.35796755,0.00024656,2]
[312893592,1706427039473,-500.0,0.00024656,2]
[312893593,1706427039483,-500.0,0.00024656,2]
[312893594,1706427039492,-500.0,0.00024656,2]
[312893595,1706427039501,-500.0,0.00024656,2]
[312893596,1706427039510,-500.0,0.00024656,2]
[312893597,1706427039520,-500.0,0.00024656,2]
[312893598,1706427039530,-500.0,0.00024656,2]
[312893599,1706427039539,-500.0,0.00024656,2]
[312893600,1706427039549,-500.0,0.00024656,2]
[312893601,1706427039558,-500.0,0.00024656,2]
[312893602,1706427039567,-214.27609953,0.00024656,2]
[312893603,1706427039576,-500.0,0.00024656,2]
[312893604,1706427039585,-500.0,0.00024656,2]
[312893605,1706427039594,-197.02207258,0.00024656,2]
[312893606,1706427039603,-500.0,0.00024656,2]
[312893607,1706427039612,-500.0,0.00024656,2]
[312893608,1706427039621,-500.0,0.00024656,2]
[312893609,1706427039631,-550.11338084,0.00024656,2]
[312893610,1706427039640,-500.0,0.00024656,2]
[312893611,1706427039650,-447.53970492,0.00024656,2]
[312893612,1706427039659,-500.0,0.00024656,2]
[312893613,1706427039668,-500.0,0.00024656,2]
[312893614,1706427039677,-500.0,0.00024656,2]
[312893615,1706427039686,-500.0,0.00024656,2]
[312893616,1706427039696,-500.0,0.00024656,2]
[312893617,1706427039705,-500.0,0.00024656,2]
[312893618,1706427039715,-200.89934999,0.00024656,2]
[312893619,1706427039724,-611.48045657,0.00024657,2]
[312893620,1706427039734,-500.0,0.00024657,2]
[312893621,1706427039743,-500.0,0.00024657,2]
[312893622,1706427039753,-500.0,0.00024657,2]
[312893623,1706427039762,-500.0,0.00024657,2]
[312893625,1706427039771,-500.0,0.00024657,2]
[312893626,1706427039780,-500.0,0.00024657,2]
[312893627,1706427039790,-500.0,0.00024657,2]
[312893628,1706427039800,-395.45045094,0.00024657,2]
[312893629,1706427039809,-500.0,0.00024657,2]
[312893630,1706427039818,-500.0,0.00024657,2]
[312893631,1706427039827,-500.0,0.00024657,2]
[312893632,1706427039837,-500.0,0.00024657,2]
[312893633,1706427039846,-500.0,0.00024657,2]
[312893634,1706427039855,-500.0,0.00024657,2]
[312893635,1706427039864,-500.0,0.00024657,2]
[312893636,1706427039873,-507.68,0.00024657,2]
[312893637,1706427039882,-500.0,0.00024657,2]
[312893638,1706427039892,-500.0,0.00024657,2]
[312893639,1706427039903,-500.0,0.00024657,2]
[312893640,1706427039913,-500.0,0.00024657,2]
[312893641,1706427039923,-500.0,0.00024657,2]
[312893642,1706427039933,-500.0,0.00024657,2]
[312893643,1706427039943,-724.92,0.00024657,2]
[312893644,1706427039952,-853.73,0.00024657,2]
[312893645,1706427040036,-500.0,0.00024657,2]
[312893646,1706427040045,-501.56619566,0.00024657,2]
[312893647,1706427040056,-500.0,0.00024657,2]
[312893648,1706427040064,-500.0,0.00024657,2]
[312893649,1706427040074,-500.0,0.00024657,2]
[312893650,1706427040084,-500.0,0.00024657,2]
[312893651,1706427040094,-500.0,0.00024657,2]
[312893652,1706427040104,-500.0,0.00024657,2]
[312893653,1706427040114,-500.0,0.00024657,2]
[312893654,1706427040124,-500.0,0.00024657,2]
[312893655,1706427040135,-500.0,0.00024657,2]
[312893656,1706427040144,-154.777918,0.00024657,2]
[312893657,1706427040153,-185.58917988,0.00024657,2]
[312893658,1706427040165,-500.0,0.00024657,2]
[312893659,1706427040173,-500.0,0.00024657,2]
[312893660,1706427040183,-500.0,0.00024657,2]
[312893661,1706427040192,-483.73588031,0.00024657,2]
[312893662,1706427040202,-500.0,0.00024657,2]
[312893663,1706427040212,-2074.42,0.00024657,2]
[312893664,1706427040221,-500.0,0.00024657,2]
[312893665,1706427040231,-500.0,0.00024657,2]
[312893666,1706427040242,-500.0,0.00024657,2]
[312893667,1706427040252,-500.0,0.00024657,2]
[312893668,1706427040261,-500.0,0.00024657,2]
[312893669,1706427040270,-500.0,0.00024657,2]
[312893670,1706427040278,-632.8967434,0.00024657,2]
[312893671,1706427040288,-904.35,0.00024657,2]
[312893672,1706427040297,-500.0,0.00024657,2]
[312893673,1706427040306,-152.312069,0.00024657,2]
[312893674,1706427040315,-500.0,0.00024657,2]
[312893676,1706427040324,-152.312069,0.00024657,2]
[312893678,1706427040334,-500.0,0.00024657,2]
[312893680,1706427040343,-1768.69,0.00024657,2]
[312893682,1706427040352,-500.0,0.00024657,2]
[312893683,1706427040361,-151.0,0.00024657,2]
[312893684,1706427040370,-151.0,0.00024657,2]
[312893685,1706427040379,-500.0,0.00024657,2]
[312893686,1706427040388,-500.0,0.00024657,2]
[312893687,1706427040397,-5529.41,0.00024657,2]
[312893688,1706427040406,-500.0,0.00024657,2]
[312893689,1706427040415,-500.0,0.00024657,2]
[312893690,1706427040424,-500.0,0.00024657,2]
[312893691,1706427040433,-500.0,0.00024657,2]
[312893692,1706427040443,-1757.48,0.00024657,2]
[312893693,1706427040452,-500.0,0.00024657,2]
[312893695,1706427040461,-897.64,0.00024657,2]
[312893696,1706427040471,-500.0,0.00024657,2]
[312893698,1706427040483,-500.0,0.00024657,2]
[312893699,1706427040491,-500.0,0.00024657,2]
[312893700,1706427040501,-557.08,0.00024657,2]
[312893701,1706427040509,-500.0,0.00024657,2]
[312893702,1706427040520,-500.0,0.00024657,2]
[312893703,1706427040529,-560.74,0.00024657,2]
[312893704,1706427040538,-500.0,0.00024657,2]
[312893705,1706427040547,-500.0,0.00024657,2]
[312893706,1706427040558,-153.33165401,0.00024657,2]
[312893708,1706427040567,-527.14,0.00024657,2]
[312893709,1706427040576,-500.0,0.00024657,2]
[312893711,1706427040585,-500.0,0.00024657,2]
[312893712,1706427040595,-500.0,0.00024657,2]
[312893713,1706427040605,-500.0,0.00024657,2]
[312893714,1706427040615,-1451.23,0.00024657,2]
[312893715,1706427040624,-500.0,0.00024657,2]
[312893716,1706427040633,-500.0,0.00024657,2]
[312893717,1706427040643,-500.0,0.00024657,2]
[312893718,1706427040652,-500.0,0.00024657,2]
[312893719,1706427040661,-500.0,0.00024657,2]
[312893720,1706427040670,-270.96680179,0.00024657,2]
[312893721,1706427040679,-500.0,0.00024657,2]
[312893722,1706427040688,-2618.59,0.00024657,2]
[312893723,1706427040698,-500.0,0.00024657,2]
[312893724,1706427040707,-151.0,0.00024657,2]
[312893725,1706427040716,-151.0,0.00024657,2]
[312893726,1706427040725,-151.0,0.00024657,2]
[312893727,1706427040734,-504.04847332,0.00024657,2]
[312893728,1706427040743,-151.0,0.00024657,2]
[312893729,1706427040752,-151.0,0.00024657,2]
[312893730,1706427040762,-259.166815,0.00024657,2]
[312893731,1706427040771,-500.0,0.00024657,2]
[312893732,1706427040781,-500.0,0.00024657,2]
[312893733,1706427040790,-500.0,0.00024657,2]
[312893734,1706427040799,-500.0,0.00024657,2]